Cogmind - Beta 17 @@@ ROGUE MODE // 2026.08.21 @ 19:53:27 Player: cd4337 Result: Destroyed by G-47 Trooper with Particle Gun Performance ------------- Evolutions (2) 1000 Regions Visited (4) 800 Robots Destroyed (26) 130 Value Destroyed (825) 825 Prototype IDs (2) 40 Alien Tech Used (0) 0 Bonus (0) 0 TOTAL SCORE: 2795 Bonus ------- None Cogmind --------- Core Integrity 0/550 Matter 500/500 Energy 100/100 System Corruption 0% Temperature Cool (18) Movement Core (400) Ox7 Location -8/Materials Parts ------- > --- POWER (3) -------- (None) > --- PROPULSION (2) --- (None) > --- UTILITY (4) ------ Large Storage Unit High-capacity Matter Pod > --- WEAPON (2) ------- (None) > --- INVENTORY (15) --- Light Treads Aluminum Leg Improved Aluminum Leg Peak State ------------ > --- POWER ------------ Light Ion Engine Reinforced Ion Engine > --- PROPULSION ------- Aluminum Leg Improved Aluminum Leg > --- UTILITY ---------- Small Storage Unit Large Storage Unit High-capacity Matter Pod > --- WEAPON ----------- Light Assault Rifle Katana > --- INVENTORY -------- Light Treads Aluminum Leg Improved Aluminum Leg [Rating: 13] Favorites ----------- Power Ion Engine Engine Ion Engine Propulsion Improved Aluminum Leg Treads Light Treads Leg Improved Aluminum Leg Utility Small Storage Unit Device Heat Sink Storage Small Storage Unit Protection Medium Armor Plating Weapon Small Laser Energy Gun Small Laser Ballistic Gun Light Assault Rifle Ballistic Cannon Light Cannon Slashing Weapon Katana Build | -11 -10 -10 -9 -8 ------- Run | Yrd Mat Min Mat Mat Slots Evolved 4 | . . . 2 2 Power 2 | . . . 2 . Propulsion . | . . . . . Utility 2 | . . . . 2 Weapon . | . . . . . Parts Attached 25 | 4 2 3 14 2 Power 5 | 1 . 1 3 . Engine 5 | 1 . 1 3 . Core . | . . . . . Reactor . | . . . . . Propulsion 6 | 1 . . 5 . Treads 1 | 1 . . . . Leg 5 | . . . 5 . Wheel . | . . . . . Hover . | . . . . . Flight . | . . . . . Utility 6 | 1 1 1 2 1 Device 2 | . 1 1 . . Storage 3 | 1 . . 1 1 Processor . | . . . . . Hackware . | . . . . . Protection 1 | . . . 1 . Artifact . | . . . . . Weapon 8 | 1 1 1 4 1 Energy Gun 3 | . 1 . 2 . Energy Cannon . | . . . . . Ballistic Gun 3 | 1 . . 1 1 Ballistic Cannon 1 | . . 1 . . Launcher . | . . . . . Special Weapon . | . . . . . Impact Weapon . | . . . . . Slashing Weapon 1 | . . . 1 . Piercing Weapon . | . . . . . Special Melee Weapon . | . . . . . Unidentified Prototypes . | . . . . . Parts Lost 20 | . . 6 7 7 Power 5 | . . 1 2 2 Propulsion 4 | . . 1 1 2 Utility 4 | . . 1 2 1 Weapon 7 | . . 3 2 2 Highest Loss Streak 5 | . . 4 2 5 To Critical Strikes . | . . . . . Average Backups 3 | 2 3 1 3 3 Power . | . 1 . . . Propulsion 1 | . . . 1 3 Utility . | . . . 1 . Weapon . | 1 2 1 . . Tool/Special . | . . . . . Unused Backups 2 | . . . 1 1 Power . | . . . . . Propulsion 2 | . . . 1 1 Utility . | . . . . . Weapon . | . . . . . Tool/Special . | . . . . . Average Slot Usage (%) 60 | . 73 63 55 62 Engine 8 | . 14 12 5 11 Treads 2 | . 14 2 . . Leg 12 | . . . 16 11 Device 2 | . 3 11 1 . Storage 13 | . 14 14 11 26 Protection 2 | . . . 3 . Energy Gun 10 | . 12 2 12 . Ballistic Gun 4 | . 14 9 1 4 Slashing Weapon 3 | . . . 3 8 Peak Build Rating 13 | 4 8 8 10 13 Average Rating 7 | 3 5 4 7 10 On Entrance 5 | . 4 8 3 10 Avg Prop Armor Cover (%) . | . . . . . Naked Turns . | . . . . . Heaviest Build 45 | 11 14 14 35 45 Greatest Support 23 | 20 20 20 23 23 Greatest Overweight (x) 13 | 3 . 4 3 13 Average Overweight (x) . | . . 2 . 2 Largest Inventory Capacity 15 | 8 8 8 15 15 Average Capacity 11 | 7 8 8 12 15 Most Carried 7 | 4 5 4 7 5 Average Carried 3 | 2 3 1 3 3 Final Capacity 15 | 8 8 8 15 15 Final Carried 6 | 3 4 1 6 3 Class Distribution -------------------- 82% | Mutant 17% | Scavenger-Mutant Dominant Class ---------------- Mutant | -10/Materials Mutant | -10/Mines Mutant | -9/Materials Scavenger-Mutant | -8/Materials Resources | -11 -10 -10 -9 -8 ----------- Run | Yrd Mat Min Mat Mat Matter Collected 727 | 207 63 69 360 28 Remotely . | . . . . . Salvage Created 972 | . 80 7 792 93 Parts 63 | . 6 . 52 5 Haulers Intercepted . | . . . . . Recyclers Shooed 2 | . . . 2 . Parts Field Recycled . | . . . . . Retrieved Matter . | . . . . . Parts Self-Destructed . | . . . . . Prevented . | . . . . . Parts Restored . | . . . . . Kills | -11 -10 -10 -9 -8 ------- Run | Yrd Mat Min Mat Mat Combat Hostiles Destroyed 23 | . 2 1 18 2 Melee 12 | . . . 10 2 Guns 8 | . 2 . 6 . Cannons 1 | . . 1 . . AOE 1 | . . . 1 . Classes Destroyed 9 | . 1 1 6 1 Tunneler 1 | . . . 1 . Watcher 3 | . . . 3 . Swarmer 4 | . . . 4 . Grunt 10 | . 2 . 8 . Brawler 1 | . . . 1 . Duelist 3 | . . . 3 . Sentry 2 | . . . 2 . Hunter 2 | . . . . 2 Assembled 1 | . . 1 . . Best Kill Streak 5 | . 2 1 5 1 Combat Bots Only 4 | . 2 1 4 1 Max Kills in Single Turn 1 | . 1 1 1 1 Gunslinging . | . . . . . Exploded 1 | . . . 1 . Melee 1 | . . . 1 1 Uniques/NPCs Destroyed . | . . . . . Combat | -11 -10 -10 -9 -8 -------- Run | Yrd Mat Min Mat Mat Hostile Shots Fired 230 | . 14 28 96 92 Missed 41 | . 2 5 17 17 Hits 189 | . 12 23 79 75 Melee 9 | . . 1 8 . Projectile 180 | . 12 22 71 75 AOE 8 | . . 8 . . Critical Strikes 9 | . 2 1 4 2 Damage Taken 3000 | . 172 611 1109 1108 Core 1004 | . 42 101 304 557 Absorbed by Shields . | . . . . . Regen/Repaired (Parts) 48 | . . . 48 . Core Remaining (%) 55 | 100 . 42 24 . Volleys Fired 91 | . 14 18 46 13 Largest 2 | . 2 2 2 1 Hottest 85 | . 70 70 85 20 Shots Fired 121 | . 22 25 61 13 Gun 108 | . 22 12 61 13 Cannon 13 | . . 13 . . Launcher . | . . . . . Special . | . . . . . Kinetic 49 | . 10 21 5 13 Thermal 41 | . 12 4 25 . Explosive . | . . . . . Electromagnetic 31 | . . . 31 . Robot Hit Streak 13 | . 5 3 13 2 Robot Miss Streak 4 | . 4 3 4 4 Penetration Max . | . . . . . Secondary Targets 1 | . 1 . . . Max Gunslinging Chain 1 | . 1 . . . Shots Hit Robots 97 | . 10 13 64 10 Core Hits 49 | . 5 3 38 3 Critical Kills . | . . . . . Critical Parts Destroyed 1 | . . 1 . . Critical Strikes 3 | . 1 1 . 1 Burn 1 | . 1 . . . Destroy 1 | . . 1 . . Sever 1 | . . . . 1 Melee Attacks 24 | . . . 19 5 Impact . | . . . . . Slashing 24 | . . . 19 5 Piercing . | . . . . . Sneak Attacks . | . . . . . Combat Hostiles . | . . . . . Follow-up Attacks . | . . . . . Damage Inflicted 1673 | . 101 176 1241 155 Guns 802 | . 101 43 627 31 Cannons 133 | . . 133 . . Explosions 130 | . . . 130 . Melee 608 | . . . 484 124 Ramming . | . . . . . Kinetic 270 | . 28 164 47 31 Thermal 409 | . 73 12 324 . Explosive . | . . . . . Electromagnetic 386 | . . . 386 . Impact . | . . . . . Slashing 608 | . . . 484 124 Piercing . | . . . . . Highest Corruption . | . . . . . Average Corruption . | . . . . . Corruption Purged . | . . . . . Corruption Blocked . | . . . . . Overload Shots . | . . . . . Overflow Damage 6 | . . . 6 . Projectiles . | . . . . . Explosions . | . . . . . Melee 6 | . . . 6 . Knockbacks 5 | . . 5 . . Impact . | . . . . . Kinetic 4 | . . 4 . . Secondary 1 | . . 1 . . Self-Inflicted Damage 51 | . . . 51 . Shots 2 | . . . 2 . Rammed . | . . . . . Targets Rammed . | . . . . . Kicked . | . . . . . Crushed . | . . . . . Highest Temperature 272 | . 272 55 122 6 Average Temperature 66 | . 119 18 53 3 Received Heat Transfer 717 | . 132 . 270 315 Effects 3 | . 3 . . . Interference 3 | . 3 . . . Siege Activations . | . . . . . Martial Activations . | . . . . . Shielding Activations . | . . . . . Robots Disrupted . | . . . . . Combat Hostiles . | . . . . . Robots Corrupted 1 | . . . 1 . Combat Hostiles 1 | . . . 1 . Parts Fried . | . . . . . Impact Corruptions . | . . . . . Robots Melted . | . . . . . Combat Hostiles . | . . . . . Parts Melted . | . . . . . Heat Transferred 908 | . 296 37 575 . Parts Sabotaged . | . . . . . Parts Stolen . | . . . . . Parts Stripped . | . . . . . Power Chain Reactions 2 | . . . 2 . Alert | -11 -10 -10 -9 -8 ------- Run | Yrd Mat Min Mat Mat Maximum Alert Level . | . . . . . Low Security (%) 100 | 100 100 100 100 100 Level 1 . | . . . . . Level 2 . | . . . . . Level 3 . | . . . . . Level 4 . | . . . . . Level 5 . | . . . . . High Security . | . . . . . Max Security . | . . . . . Peak Influence 160 | . 50 5 160 62 Initial 62 | . . 3 . 62 Average 30 | . 12 . 40 27 Influence Increases 628 | . 60 5 503 60 Destroy 0b10 Robot/C 440 | . 40 . 360 40 Destroy 0b10 Robot/NC 25 | . . 5 20 . Destroy Leader 106 | . 10 . 76 20 Successful Hack 19 | . 10 . 9 . Destroy Structure 8 | . . . 8 . Lose Combat Pursuer 30 | . . . 30 . Influence Decreases 628 | . 50 15 355 208 Entered New Map 93 | . . 7 . 86 Time Decay 433 | . 50 . 311 72 Lost Part 97 | . . 3 44 50 Lost Ally 5 | . . 5 . . Squads Dispatched 2 | . 1 . 1 . Investigation 1 | . . . 1 . Extermination . | . . . . . Reinforcement 1 | . 1 . . . Assault . | . . . . . Garrison . | . . . . . Intercept . | . . . . . Searches Triggered . | . . . . . Construction Impeded . | . . . . . Haulers Reinforced . | . . . . . Active Scanning Responses . | . . . . . Cargo Convoy Interrupts . | . . . . . Stealth | -11 -10 -10 -9 -8 --------- Run | Yrd Mat Min Mat Mat Distress Signals 3 | . . . 3 . Communications Jammed . | . . . . . Distress Signals . | . . . . . Times Spotted 46 | . 5 9 25 7 Peak Tracking Total 6 | . 2 4 4 6 Tactical Retreats 3 | . . 1 2 . Traps | -11 -10 -10 -9 -8 ------- Run | Yrd Mat Min Mat Mat Traps Triggered 2 | . . . 2 . Indirectly . | . . . . . Trap Hack Attempts . | . . . . . Triggered . | . . . . . Disarmed . | . . . . . Reprogrammed . | . . . . . Reused . | . . . . . Traps Extracted . | . . . . . Installed . | . . . . . Triggered . | . . . . . Machines | -11 -10 -10 -9 -8 ---------- Run | Yrd Mat Min Mat Mat Machines Disabled . | . . . . . Max in Single Turn . | . . . . . Machines Repaired . | . . . . . Machines Dismantled . | . . . . . Machines Sabotaged . | . . . . . Overloaded Fab Kills . | . . . . . Hacking | -11 -10 -10 -9 -8 --------- Run | Yrd Mat Min Mat Mat Machines Accessed 7 | . 2 . 4 1 Terminals 5 | . 2 . 2 1 Fabricators . | . . . . . Repair Stations 1 | . . . 1 . Recycling Units . | . . . . . Scanalyzers 1 | . . . 1 . Garrison Access . | . . . . . Total Hacks 27 | . 9 . 16 2 Successful 20 | . 7 . 12 1 Failed 7 | . 2 . 4 1 Catastrophic . | . . . . . Database Lockouts . | . . . . . Manual . | . . . . . Terminals 18 | . 9 . 7 2 Fabricators . | . . . . . Repair Stations 7 | . . . 7 . Recycling Units . | . . . . . Scanalyzers 2 | . . . 2 . Garrison Access . | . . . . . Terminal Hacks 13 | . 7 . 5 1 Record 3 | . 3 . . . Prototype ID Bank 1 | . . . 1 . Emergency Access Points 1 | . . . 1 . Alert Level 1 | . . . 1 . Locate Traps 1 | . 1 . . . Dispatch Records 1 | . 1 . . . Maintenance Status 1 | . . . . 1 Reinforcement Status 1 | . 1 . . . Zone Layout 3 | . 1 . 2 . Fabricator Hacks . | . . . . . Repair Station Hacks 5 | . . . 5 . Scan Component 3 | . . . 3 . Repair 2 | . . . 2 . Recycling Unit Hacks . | . . . . . Scanalyzer 2 | . . . 2 . Insert Component 1 | . . . 1 . Analyze 1 | . . . 1 . Garrison Access Hacks . | . . . . . Unauthorized Hacks . | . . . . . Terminals . | . . . . . Fabricators . | . . . . . Repair Stations . | . . . . . Recycling Units . | . . . . . Scanalyzers . | . . . . . Garrison Access . | . . . . . Data Cores Recovered . | . . . . . Used . | . . . . . Hacking Detections 5 | . 1 . 3 1 Full Trace Events . | . . . . . Feedback Events . | . . . . . Feedback Blocked . | . . . . . Robot Schematics Acquired . | . . . . . Robots Built . | . . . . . Authchips . | . . . . . Time . | . . . . . Total Robot Build Rating . | . . . . . Part Schematics Acquired 1 | . . . 1 . Parts Built . | . . . . . Authchips . | . . . . . Time . | . . . . . Total Part Build Rating . | . . . . . Part Studies Acquired . | . . . . . Parts Repaired 2 | . . . 2 . Time 68 | . . . 68 . Parts Recycled . | . . . . . Recycled Matter . | . . . . . Retrieved Matter . | . . . . . Retrieved Components . | . . . . . Parts Scanalyzed 1 | . . . 1 . Part Schematics Acquired 1 | . . . 1 . Parts Damaged . | . . . . . Bothacking | -11 -10 -10 -9 -8 ------------ Run | Yrd Mat Min Mat Mat Used RIF Installer . | . . . . . Robots Hacked . | . . . . . Non-combat . | . . . . . Combat . | . . . . . Robot Hacks Applied . | . . . . . Relay Couplers Released . | . . . . . Fabnet Peak Effective % . | . . . . . Robots Rewired . | . . . . . Allies Hacked . | . . . . . Hacks Repelled . | . . . . . Allies | -11 -10 -10 -9 -8 -------- Run | Yrd Mat Min Mat Mat Total Allies 2 | . . 2 . . Largest Group 2 | . . 2 . . Highest-Rated Group 45 | . . 45 . . Highest-Rated Ally 31 | . . 31 . . Total Orders . | . . . . . Ally Attacks 3 | . . 3 . . Total Damage 43 | . . 43 . . Kills 2 | . . 2 . . Allies Corrupted . | . . . . . Allies Melted 1 | . . 1 . . Intel | -11 -10 -10 -9 -8 ------- Run | Yrd Mat Min Mat Mat Active Infowar (turns) . | . . . . . Robot Analysis Total . | . . . . . Derelict Logs Recovered . | . . . . . Drone Launches . | . . . . . Drone Recoveries . | . . . . . Exploration | -11 -10 -10 -9 -8 ------------- Run | Yrd Mat Min Mat Mat Turns Passed 1573 | 74 238 108 968 185 Spaces Moved 680 | 47 125 26 429 53 Core 123 | 24 . 25 68 6 Treads 149 | 23 125 1 . . Legs 408 | . . . 361 47 Wheels . | . . . . . Hover . | . . . . . Flight . | . . . . . Fastest Speed 50 | 50 160 100 100 190 Average Speed 167 | 135 160 200 159 261 Slowest Speed 700 | 200 160 250 330 700 Overloaded Moves . | . . . . . Propulsion Burnouts . | . . . . . Robots Hopped . | . . . . . Potential Cave-ins . | . . . . . Cave-ins Triggered . | . . . . . Exploration Rate (%) 18 | 4 34 7 38 11 Regions Visited 4 Branch Regions 1 Pre-discovered Areas . | . . . . . Known Exits Taken . | . . . . . Unknown Exits Taken 4 | 1 1 1 1 . Scrap Searched . | . . . . . Spaces Dug . | . . . . . Terrain Destroyed 10 | . . . 10 . Melee . | . . . . . Projectile . | . . . . . AOE 10 | . . . 10 . Terrain Rammed . | . . . . . Walls Destroyed . | . . . . . Machines Disabled . | . . . . . Actions | -11 -10 -10 -9 -8 --------- Run | Yrd Mat Min Mat Mat Total 964 | 57 143 59 623 82 Wait 113 | . . 13 92 8 Move 676 | 46 124 25 428 53 Hop . | . . . . . Pick Up 29 | 7 3 . 19 . Fast Attach . | . . . . . Attach 26 | 4 2 3 14 3 Detach 1 | . . . 1 . Swap 3 | . . . 3 . Drop 1 | . . . 1 . Fire 91 | . 14 18 46 13 Melee 24 | . . . 19 5 Ram . | . . . . . Kick . | . . . . . Crush . | . . . . . Escape Stasis . | . . . . . Rewire . | . . . . . Trap . | . . . . . Miscellaneous . | . . . . . Route ------- -11/Scrapyard -10/Materials (discovered 3 exits: *Mat / [*Min x2]) -10/Mines -9/Materials -8/Materials History --------- Turn | Location | Event 26 | -11/Scrapyard | Discovered new exit (range 14) 75 | -11/Scrapyard | Entered Materials 169 | -10/Materials | Discovered new exit (range 12) 223 | -10/Materials | Discovered new exit (range 12) 262 | -10/Materials | Discovered new exit (range 12) 305 | -10/Materials | Build established: Mutant 313 | -10/Materials | Entered Mines 314 | -10/Mines | Assembled infested the area 319 | -10/Mines | Assisted by a Guerilla fighting off Assembled 329 | -10/Mines | Discovered new exit (range 7) 356 | -10/Mines | Lost 4 parts (1p1n1u1w) 401 | -10/Mines | Core integrity fell below 50% 421 | -10/Mines | Entered Materials 421 | -9/Materials | Evolved 2 slots: Power x2 945 | -9/Materials | Repaired Broken Aluminum Leg 979 | -9/Materials | Repaired Imp. Aluminum Leg 1215 | -9/Materials | Core integrity fell below 50% 1304 | -9/Materials | Discovered new exit (range 15) 1389 | -9/Materials | Entered another Materials area 1389 | -8/Materials | Evolved 2 slots: Utility x2 1547 | -8/Materials | Core integrity fell below 50% 1559 | -8/Materials | Lost 5 parts (2p2n1w) 1568 | -8/Materials | Core integrity fell below 20% 1574 | -8/Materials | Destroyed by G-47 Trooper with Particle Gun Last Messages --------------- 01513_ Penetrated by Slug. 01514_ K-01 Serf collects debris. 01516_ Penetrated by Slug. 01517_ H-55 Commando Gauss Rifle severed. 01518_ K-01 Serf collects debris. 01520_ R-06 Scavenger collects Gauss Rifle. 01522_ K-01 Serf collects debris. 01525_ Aluminum Leg destroyed. 01528_ Rnf. Ion Engine destroyed. 01529_ K-01 Serf collects debris. 01544_ Purification Channel disabled. 01545_ H-55 Commando destroyed. 01548_ Acquired 28 matter. 01552_ R-06 Scavenger collects Carbon-fiber Leg. 01552_ R-06 Scavenger collects Targeting Computer. 01564_ Critical hit (Burn: +37). 01566_ Katana destroyed. 01566_ Critical hit (Burn: +37). 01571_ Sml. Storage Unit destroyed. Map ----- +----------------------------------------------------+ | ?????????????????????????# #??????????????? | | ?????????????????????????# #??????????????? | | ?????????????????????##### !!! #??????????????? | | ?????????????????????# # !!! #??????????????? | | ?????????????????????# # !! #??????????????? | | ?????????????????????# # #??????????????? | | ?????????????????????# + #??????????????? | | ?????????????????????# ##########??????????????? | | ?????????????????????# #???????????????????????? | | ?????????????????????# #???????????????????????? | | ?????????????????????# #???????????????????????? | | ?????????????????????# #???????????????????????? | | ?????????????????????# #???????????????????????? | | ???????? ####+### ##########+####?????????? | | ???????? T #?????????? | | ???????? #?????????? | | ???????? " #?????????? | | ?????????############# """ #?????????? | | ?????????????????##### "" #?????????? | | ?????????????????#** """ #?????????? | | ?????????????????#** "" #?????????? | | ?????????????????#[[ """ #?????????? | | ?????????????????#[[ """ #?????????? | | ?????????????????#]] r g"" #?????????? | | ?????????????????#]] a g g %#?????????? | | ?????????????????##### @ ##+#### #?? | | ?????????????????????# #? | | ?????????????????????# " #? | | ?????????????????????# " % #? | | ?????????????????????# "" ###T####### #? | | ?????????????????????# """ #?###???????? #? | | ?????????????????????# "" #??????????????? | | ?????????????????????#a """ #??????????????? | | ?????????????????????# """ #??????????????? | | ?????????????????????+ u """ #??????????????? | | ?????????????????????# r " #??????????????? | | ?????????????????????# "??????????????? | | ?????????????????????# ? G?????????????? | | ?????????????????????## " ""?????????????? | | ??????????????????????# """ ##?????????????? | | ??????????????????????? ?" ??????????????? | | ???????????????????????????" ??????????????? | | ???????????????????????????" ??????????????? | | ???????????????????????????? #??????????????? | | ?????????????????????????????????????????????????? | | ?????????????????????????????????????????????????? | | ?????????????????????????????????????????????????? | | ?????????????????????????????????????????????????? | | ?????????????????????????????????????????????????? | | ?????????????????????????????????????????????????? | +----------------------------------------------------+ Best States ------------- Heat Dissipation 39 Energy Generation 17 Energy Capacity 290 Matter Stores 500 Matter Capacity 500 Sight Range 16 Terrain Scan Density 10 Armor Coverage 225 Evasion (%) 55 Recoil Reduction 1 Item Schematics ----------------- Aluminum Leg | -9/Materials | Scanalyzed Robot Schematics ------------------ None Fabricated ------------ Nothing Repaired ---------- Aluminum Leg | 73% | -9/Materials | Broken Imp. Aluminum Leg | 76% | -9/Materials Studied --------- None Alien Tech Used ----------------- None Achievements -------------- Bumper Bots DATA ERROR: Steam Global Achievement% I Survived The Infestation Organ Harvest There's More Where That Came From Challenges ------------ None Game ------ Seed ControlAutogunReplicator Manual? 0 Play Time 00:23:58 Cumulative 10.8 hours Start 2026.08.21 @ 19:30:17 End 2026.08.21 @ 19:53:27 Sessions 1 Manual Loads 0 Difficulty Rogue Special Mode None Game No. 28 Rogue 28 Adventurer 0 Explorer 0 Win Type - Total 0 Types 0/0/0/0/0/0/0/0/0/0 Lore% 8 Gallery% 10 Achievement% 8 Wizard Run 0 Options --------- Layout 1 ASCII 0 Keyboard 0 Movement Mouse Keybinds 0 Fullscreen 1 Font 32/SmallcapsGlow Map View 50x35 Zoom Use 0% Tactical HUD 1 Map Filters NONE Filters NONE Steam 1 RUN: d9a56b03-6976-4ffe-8300-d01e8d76e644